Cogmind - Beta 10.2 *** ADVENTURER MODE // 2020.11.28 @ 23:28:31 // Halloween2020/ForbiddenLore Player: Alexlascribe Result: Self-destructed Performance ------------- Evolutions (1) 500 Regions Visited (2) 400 Robots Destroyed (22) 110 Value Destroyed (588) 588 Prototype IDs (3) 60 Alien Tech Used (0) 0 Bonus (15) 15 TOTAL SCORE: 1673 Bonus ------- High Alert Combat Kills 15 Cogmind --------- Core Integrity 373/400 Matter 300/300 Energy 449/560 System Corruption 0% Temperature Cool (530) Movement Hovering (116) Ox1 Location -9/Materials Parts ------- > --- POWER (1) -------- Light Nuclear Core > --- PROPULSION (4) --- Hover Unit Hover Unit > --- UTILITY (2) ------ High-capacity Battery Improved Targeting Computer > --- WEAPON (2) ------- Particle Cannon Advanced Beam Cannon > --- INVENTORY (4) ---- Heat Sink EM Pulse Gun Small Laser Particle Gun Peak State ------------ > --- POWER ------------ Light Nuclear Core > --- PROPULSION ------- Hover Unit Hover Unit Hover Unit Hover Unit > --- UTILITY ---------- High-capacity Battery Improved Targeting Computer > --- WEAPON ----------- Particle Gun Advanced Beam Cannon > --- INVENTORY -------- Heat Sink EM Pulse Gun Small Laser Particle Gun [Rating: 15] Favorites ----------- Power Ion Engine Engine Ion Engine Power Core Light Nuclear Core Propulsion Hover Unit Leg Aluminum Leg Hover Unit Hover Unit Utility Targeting Computer Storage High-capacity Battery Processor Targeting Computer Weapon Particle Gun Energy Gun Particle Gun Energy Cannon Advanced Beam Cannon Build | -11 -10 -9 ------- Run | Scr Mat Mat Slots Evolved 2 | . . 2 Power . | . . . Propulsion 2 | . . 2 Utility . | . . . Weapon . | . . . Parts Attached 26 | 6 10 10 Power 3 | 1 1 1 Engine 2 | 1 1 . Core 1 | . . 1 Reactor . | . . . Propulsion 6 | 2 2 2 Treads . | . . . Leg 2 | 2 . . Wheel . | . . . Hover 4 | . 2 2 Flight . | . . . Utility 4 | 1 2 1 Device . | . . . Storage 2 | 1 1 . Processor 2 | . 1 1 Hackware . | . . . Protection . | . . . Artifact . | . . . Weapon 13 | 2 5 6 Energy Gun 11 | 2 5 4 Energy Cannon 2 | . . 2 Ballistic Gun . | . . . Ballistic Cannon . | . . . Launcher . | . . . Special Weapon . | . . . Impact Weapon . | . . . Slashing Weapon . | . . . Piercing Weapon . | . . . Special Melee Weapon . | . . . Unidentified Prototypes 1 | . . 1 Parts Lost 3 | . 1 2 Power 1 | . 1 . Propulsion 2 | . . 2 Utility . | . . . Weapon . | . . . Highest Loss Streak 2 | . 1 2 Average Slot Usage (%) 98 | . 98 97 Engine 9 | . 14 5 Core 3 | . . 5 Leg 11 | . 24 . Hover 23 | . 3 42 Storage 12 | . 14 11 Processor 11 | . 12 11 Energy Gun 20 | . 28 12 Energy Cannon 4 | . . 9 Naked Turns . | . . . Heaviest Build 17 | 10 15 17 Greatest Support 24 | 20 20 24 Greatest Overweight (x) 4 | . 4 . Average Overweight (x) . | . . . Largest Inventory Capacity 6 | 6 6 4 Average Capacity 4 | 4 5 4 Most Carried 4 | 4 4 4 Average Carried 2 | 2 2 3 Final Capacity 6 | 6 4 4 Final Carried 4 | 2 4 4 Class Distribution -------------------- 100% | Mutant Dominant Class ---------------- Mutant | -10/Materials Mutant | -9/Materials Resources | -11 -10 -9 ----------- Run | Scr Mat Mat Matter Collected 503 | 260 35 208 Remotely . | . . . Salvage Created 826 | . 282 544 Parts 46 | . 15 31 Haulers Intercepted 1 | . . 1 Recyclers Shooed 3 | . 2 1 Parts Field Recycled . | . . . Retrieved Matter . | . . . Parts Self-Destructed . | . . . Prevented . | . . . Kills | -11 -10 -9 ------- Run | Scr Mat Mat Combat Hostiles Destroyed 16 | . 4 12 Guns 7 | . 4 3 Cannons 9 | . . 9 Classes Destroyed 8 | . 4 4 Worker 1 | . 1 . Hauler 1 | . . 1 Recycler 1 | . 1 . Operator 1 | . . 1 Watcher 2 | . 1 1 Swarmer 4 | . . 4 Grunt 8 | . 4 4 Sentry 4 | . . 4 Best Kill Streak 6 | . 4 6 Combat Bots Only 5 | . 2 5 Max Kills in Single Turn 2 | . 1 2 Gunslinging . | . . . Exploded . | . . . Melee . | . . . Uniques/NPCs Destroyed . | . . . Combat | -11 -10 -9 -------- Run | Scr Mat Mat Damage Taken 347 | . 123 224 Core 57 | . 30 27 Absorbed by Shields . | . . . Core Remaining (%) 94 | 100 88 . Volleys Fired 46 | . 17 29 Largest 2 | . 2 2 Hottest 136 | . 115 136 Shots Fired 86 | . 34 52 Gun 61 | . 34 27 Cannon 25 | . . 25 Launcher . | . . . Special . | . . . Kinetic . | . . . Thermal 84 | . 34 50 Explosive . | . . . Electromagnetic 2 | . . 2 Robot Hit Streak 17 | . 17 10 Robot Miss Streak 2 | . 1 2 Penetration Max . | . . . Secondary Targets . | . . . Shots Hit Robots 66 | . 27 39 Core Hits 32 | . 14 18 Critical Hits 2 | . . 2 Critical Kills . | . . . Critical Parts Destroyed 1 | . . 1 Melee Attacks . | . . . Impact . | . . . Slashing . | . . . Piercing . | . . . Sneak Attacks . | . . . Combat Hostiles . | . . . Follow-up Attacks . | . . . Damage Inflicted 1018 | . 329 689 Guns 589 | . 329 260 Cannons 369 | . . 369 Explosions 60 | . . 60 Melee . | . . . Ramming . | . . . Kinetic . | . . . Thermal 1003 | . 329 674 Explosive . | . . . Electromagnetic 15 | . . 15 Impact . | . . . Slashing . | . . . Piercing . | . . . Highest Corruption . | . . . Average Corruption . | . . . Corruption Purged . | . . . Overload Shots . | . . . Overflow Damage 1 | . . 1 Projectiles 1 | . . 1 Explosions . | . . . Melee . | . . . Knockbacks . | . . . Impact . | . . . Kinetic . | . . . Secondary . | . . . Self-Inflicted Damage . | . . . Shots . | . . . Rammed . | . . . Targets Rammed . | . . . Kicked . | . . . Crushed . | . . . Highest Temperature 575 | . 262 575 Average Temperature 196 | . 133 225 Received Heat Transfer 168 | . 93 75 Effects 10 | . . 10 Shutdowns 2 | . . 2 Energy Bleed 2 | . . 2 Interference 3 | . . 3 Matter Decay 1 | . . 1 Short Circuit 1 | . . 1 Damage (major) 1 | . . 1 Siege Activations . | . . . Robots Corrupted . | . . . Combat Hostiles . | . . . Parts Fried . | . . . Impact Corruptions . | . . . Robots Melted . | . . . Combat Hostiles . | . . . Parts Melted 4 | . 2 2 Heat Transferred 2199 | . 891 1308 Parts Sabotaged . | . . . Parts Stolen . | . . . Parts Stripped . | . . . Power Chain Reactions 1 | . . 1 Missiles Intercepted . | . . . Alert | -11 -10 -9 ------- Run | Scr Mat Mat Peak Influence 443 | . 128 443 Initial 45 | . . 45 Average 118 | . 62 198 Maximum Alert Level 2 | . . 2 Low Security (%) 74 | 100 100 43 Level 1 22 | . . 49 Level 2 3 | . . 6 Level 3 . | . . . Level 4 . | . . . Level 5 . | . . . High Security . | . . . Max Security . | . . . Squads Dispatched 1 | . . 1 Investigation . | . . . Extermination . | . . . Reinforcement 1 | . . 1 Assault . | . . . Garrison . | . . . Intercept . | . . . Construction Impeded . | . . . Haulers Reinforced . | . . . Stealth | -11 -10 -9 --------- Run | Scr Mat Mat Distress Signals 1 | . . 1 Communications Jammed . | . . . Distress Signals . | . . . Times Spotted 22 | . 5 17 Peak Tracking Total 8 | . 4 8 Tactical Retreats . | . . . Traps | -11 -10 -9 ------- Run | Scr Mat Mat Traps Triggered . | . . . Indirectly . | . . . Trap Hack Attempts . | . . . Triggered . | . . . Disarmed . | . . . Reprogrammed . | . . . Reused . | . . . Traps Extracted . | . . . Installed . | . . . Triggered . | . . . Machines | -11 -10 -9 ---------- Run | Scr Mat Mat Machines Disabled . | . . . Max in Single Turn . | . . . Machines Sabotaged . | . . . Garrisons Compromised . | . . . Overloaded Fab Kills . | . . . Fab Network Shutdowns . | . . . Hacking | -11 -10 -9 --------- Run | Scr Mat Mat Machines Accessed 4 | . 3 1 Terminals 4 | . 3 1 Fabricators . | . . . Repair Stations . | . . . Recycling Units . | . . . Scanalyzers . | . . . Garrison Access . | . . . Total Hacks 16 | . 12 4 Successful 14 | . 10 4 Failed 2 | . 2 . Catastrophic . | . . . Database Lockouts . | . . . Manual . | . . . Terminals 16 | . 12 4 Fabricators . | . . . Repair Stations . | . . . Recycling Units . | . . . Scanalyzers . | . . . Garrison Access . | . . . Terminal Hacks 14 | . 10 4 Record 5 | . 3 2 Robot Analysis 1 | . 1 . Prototype ID Bank 1 | . 1 . Level Access Points 1 | . 1 . Alert Level 1 | . 1 . Locate Traps 1 | . 1 . Surveillance Status 1 | . 1 . Recall Investigation 1 | . . 1 Hauler Manifests 1 | . . 1 Zone Layout 1 | . 1 . Fabricator Hacks . | . . . Repair Station Hacks . | . . . Recycling Unit Hacks . | . . . Scanalyzer . | . . . Garrison Access Hacks . | . . . Unauthorized Hacks . | . . . Terminals . | . . . Fabricators . | . . . Repair Stations . | . . . Recycling Units . | . . . Scanalyzers . | . . . Garrison Access . | . . . Data Cores Recovered . | . . . Used . | . . . Hacking Detections 1 | . . 1 Full Trace Events . | . . . Feedback Events . | . . . Feedback Blocked . | . . . Robot Schematics Acquired . | . . . Robots Built . | . . . Matter . | . . . Time . | . . . Total Robot Build Rating . | . . . Part Schematics Acquired . | . . . Parts Built . | . . . Matter . | . . . Time . | . . . Total Part Build Rating . | . . . Parts Repaired . | . . . Time . | . . . Parts Recycled . | . . . Recycled Matter . | . . . Retrieved Matter . | . . . Retrieved Components . | . . . Parts Scanalyzed . | . . . Part Schematics Acquired . | . . . Parts Damaged . | . . . Bothacking | -11 -10 -9 ------------ Run | Scr Mat Mat Used RIF Installer . | . . . Robots Hacked . | . . . Non-combat . | . . . Combat . | . . . Robot Hacks Applied . | . . . Relay Couplers Released . | . . . Robots Rewired . | . . . Allies Hacked . | . . . Hacks Repelled . | . . . Allies | -11 -10 -9 -------- Run | Scr Mat Mat Total Allies . | . . . Largest Group . | . . . Highest-Rated Group . | . . . Highest-Rated Ally . | . . . Total Orders . | . . . Ally Attacks . | . . . Total Damage . | . . . Kills . | . . . Allies Corrupted . | . . . Allies Melted . | . . . Intel | -11 -10 -9 ------- Run | Scr Mat Mat Robot Analysis Total 1 | . 1 . Derelict Logs Recovered . | . . . Drone Launches . | . . . Drone Recoveries . | . . . Exploration | -11 -10 -9 ------------- Run | Scr Mat Mat Turns Passed 591 | 63 255 273 Spaces Moved 421 | 51 157 213 Core 18 | 16 2 . Treads . | . . . Legs 150 | 35 115 . Wheels . | . . . Hover 253 | . 40 213 Flight . | . . . Fastest Speed 48 | 50 56 48 Average Speed 76 | 98 106 48 Slowest Speed 250 | 120 250 48 Overloaded Moves . | . . . Propulsion Burnouts . | . . . Robots Hopped . | . . . Cave-ins Triggered . | . . . Exploration Rate (%) 23 | 4 44 23 Regions Visited 2 Branch Regions . Pre-discovered Areas . | . . . Known Exits Taken 1 | . 1 . Unknown Exits Taken 1 | 1 . . Scrap Searched . | . . . Spaces Dug . | . . . Terrain Destroyed 3 | . . 3 Melee . | . . . Projectile . | . . . AOE 3 | . . 3 Terrain Rammed . | . . . Walls Destroyed . | . . . Machines Disabled . | . . . Actions | -11 -10 -9 --------- Run | Scr Mat Mat Total 600 | 63 208 329 Wait 84 | . 13 71 Move 419 | 50 156 213 Hop . | . . . Pick Up 18 | 7 8 3 Fast Attach 3 | 1 . 2 Attach 12 | 5 4 3 Detach . | . . . Swap 11 | . 6 5 Drop 7 | . 4 3 Fire 46 | . 17 29 Melee . | . . . Ram . | . . . Kick . | . . . Crush . | . . . Escape Stasis . | . . . Rewire . | . . . Trap . | . . . Miscellaneous . | . . . Route ------- -11/Scrapyard -10/Materials (discovered 3 exits: *Mat x3) -9/Materials History --------- Turn | Location | Event 5 | -11/Scrapyard | Discovered new exit (range 15) 64 | -11/Scrapyard | Entered Materials 300 | -10/Materials | Identified exit to Materials 319 | -10/Materials | Build established: Mutant 319 | -10/Materials | Entered another Materials area 319 | -9/Materials | Evolved 2 slots: Propulsion x2 592 | -9/Materials | Self-destructed Last Messages --------------- Dropped Particle Gun. Acquired Particle Cannon. S-10 Pest destroyed. C-30 ARC bursts open, deploying its payload. S-10 Pest unfolds itself. S-10 Pest destroyed. Acquired 10 matter. Destroyed Flight Unit. Hover Unit destroyed. Overheating: Energy bleed (-124). Y-45 Defender destroyed. S-10 Pest destroyed. Overheating: System interference. Particle Cannon temporarily disabled. Adv. Beam Cannon permanently disabled. Overheating: Short circuit. Overheating: Imp. Targeting Computer damaged (-6). Power failure, Lgt. Nuclear Core shutdown. Overheating: System interference. Imp. Targeting Computer temporarily disabled. Map ----- +----------------------------------------------------+ | ?????????????????????????????????????????????????? | | ?????????????????????????????????????????????????? | | ?????????????????????????????????????????????????? | | ?????????????????????????????????????????????????? | | ?????????????????????????????????????????????????? | | ?????????????????????????????????????????????????? | | ?????????????????????????????????????????????????? | | ?????????????????????????????????????????????????? | | ????????????????????????????????????????????????? | | ??????????????????????????? ?????????????????? | | ?????????????????????????? #????????????????? | | ?????????????????????????? #????????????????? | | ??????????????????????????# #????????????????? | | ??????????????????????????# #????????????????? | | ??????????????????????????# #????????????????? | | ??????????????????????????+ #????????????????# | | ??????????????????????????# #????????????????# | | ??????????????????????????# #????????????????# | | ??????????????????????????# #????????????????# | | ??????????????????????????# #?????????????? ## | | ??????????????????????????# a#?????????????" ?# | | ??????????????############# #??????????? ???# | | ??????????????# =#* ###########/###### | | ????????????????""" [=#%s | | ????????????????""" *=ss ### | | ????????????????""" ""@# #?? | | ????????????????""" T"[# ############+###+#?? | | ??????????????? ""%# #??????# #?? | | ??????????????? !!# #??????# [ #?? | | ????????????????# ######### #??????# """"""" #?? | | ??????????????????????????# #??????# """"""" #?? | | ??????????????????????????# #??????# """"""" #?? | | ??????????????????????????# #??????# """"""" #?? | | ??????????????????????????# #??????# """"""" #?? | | ??????????????????????????# #??????# ?????? #?? | | ??????????????????????????# #??????##??????###?? | | ??????????????????????????+ +??????????????????? | | ??????????????????????????# #??????????????????? | | ??????????????????????????# #??????????????????? | | ??????????????????????????? ???????????????????? | | ?????????????????????????????????????????????????? | | ?????????????????????????????????????????????????? | | ?????????????????????????????????????????????????? | | ?????????????????????????????????????????????????? | | ?????????????????????????????????????????????????? | | ?????????????????????????????????????????????????? | | ?????????????????????????????????????????????????? | | ?????????????????????????????????????????????????? | | ?????????????????????????????????????????????????? | | ?????????????????????????????????????????????????? | +----------------------------------------------------+ Best States ------------- Heat Dissipation 28 Energy Generation 14 Energy Capacity 650 Matter Stores 300 Matter Capacity 300 Sight Range 16 Terrain Scan Density 10 Resistance: KI 20 Resistance: TH 20 Resistance: EX 20 Resistance: EM 20 Resistance: I 20 Resistance: S 20 Resistance: P 20 Evasion (%) 55 Targeting Accuracy 6 Offensive Hacking 10 Item Schematics ----------------- None Robot Schematics ------------------ None Fabricated ------------ Nothing Alien Tech Used ----------------- None Achievements -------------- Shopping List Challenges ------------ None Game ------ Seed BombardmentAerolevPerforator Manual? 0 Play Time 00:12:36 Cumulative 26.9 hours Start 2020.11.28 @ 23:19:34 End 2020.11.28 @ 23:28:31 Sessions 1 Manual Loads 0 Difficulty Adventurer Special Mode Halloween2020/ForbiddenLore Game No. 48 Rogue 44 Adventurer 4 Explorer 0 Win Type - Total 0 Types 0/0/0/0/0/0/0/0/0 Lore% 7 Gallery% 20 Achievement% 13 Wizard Run 0 Options --------- ASCII 0 Keyboard 0 Movement Mouse Keybinds 0 Fullscreen 2 Font 18/SmallcapsGlow Map View 76x50 Tactical HUD 0 Map Filters NONE Filters NONE Steam 1 RUN: 2c4de2cb-7991-42b7-bdb4-25ea4ef2fbff